Cogmind - Beta 11.1 @@@ ROGUE MODE // 2022.04.30 @ 21:48:46 Player: Olga Result: Self-destructed Performance ------------- Evolutions (3) 1500 Regions Visited (6) 1200 Robots Destroyed (13) 65 Value Destroyed (225) 225 Prototype IDs (1) 20 Alien Tech Used (0) 0 Bonus (211) 211 TOTAL SCORE: 3221 Bonus ------- Pacifist 200 High Alert Combat Kills 11 Cogmind --------- Core Integrity 671/700 Matter 74/300 Energy 100/100 System Corruption 0% Temperature Cool (1) Movement Flying (35) Location -7/Factory Parts ------- > --- POWER (1) -------- (None) > --- PROPULSION (2) --- Cesium-ion Thruster > --- UTILITY (8) ------ Structural Scanner Improved Signal Interpreter Seismic Detector > --- WEAPON (2) ------- Mini Grenade Launcher Mini Grenade Launcher > --- INVENTORY (5) ---- Structural Scanner Machine Analyzer Improved Utility Shielding Layered Light Armor Plating Power Maul Peak State ------------ > --- POWER ------------ Heavy Deuterium Engine > --- PROPULSION ------- Cesium-ion Thruster Cesium-ion Thruster > --- UTILITY ---------- Structural Scanner Improved Signal Interpreter > --- WEAPON ----------- Mini Grenade Launcher Mini Grenade Launcher > --- INVENTORY -------- Structural Scanner Structural Scanner Improved Signal Interpreter Mini Grenade Launcher Great Maul [Rating: 20] Favorites ----------- Power Ion Engine Engine Ion Engine Propulsion Light Treads Treads Light Treads Leg Aluminum Leg Flight Unit Cesium-ion Thruster Utility Structural Scanner Device Structural Scanner Storage Small Storage Unit Processor Improved Signal Interpreter Weapon Mini Grenade Launcher Energy Gun Small Laser Ballistic Gun Assault Rifle Launcher Mini Grenade Launcher Impact Weapon Great Maul Build | -11 -10 -9 -8 -7 -7 -7 ------- Run | Scr Mat Mat Mat Fac Was Fac Slots Evolved 6 | . . 2 2 2 . . Power . | . . . . . . . Propulsion . | . . . . . . . Utility 6 | . . 2 2 2 . . Weapon . | . . . . . . . Parts Attached 15 | . 6 1 2 1 . 5 Power 1 | . . . . . . 1 Engine 1 | . . . . . . 1 Core . | . . . . . . . Reactor . | . . . . . . . Propulsion 5 | . 2 . . . . 3 Treads 2 | . 2 . . . . . Leg . | . . . . . . . Wheel . | . . . . . . . Hover . | . . . . . . . Flight 3 | . . . . . . 3 Utility 4 | . 1 1 . 1 . 1 Device 3 | . 1 . . 1 . 1 Storage . | . . . . . . . Processor 1 | . . 1 . . . . Hackware . | . . . . . . . Protection . | . . . . . . . Artifact . | . . . . . . . Weapon 5 | . 3 . 2 . . . Energy Gun . | . . . . . . . Energy Cannon . | . . . . . . . Ballistic Gun 1 | . 1 . . . . . Ballistic Cannon . | . . . . . . . Launcher 3 | . 2 . 1 . . . Special Weapon . | . . . . . . . Impact Weapon 1 | . . . 1 . . . Slashing Weapon . | . . . . . . . Piercing Weapon . | . . . . . . . Special Melee Weapon . | . . . . . . . Unidentified Prototypes 1 | . . . . . . 1 Parts Lost 2 | . . . . 1 . 1 Power . | . . . . . . . Propulsion 2 | . . . . 1 . 1 Utility . | . . . . . . . Weapon . | . . . . . . . Highest Loss Streak 1 | . . . . 1 . 1 To Critical Strikes . | . . . . . . . Average Slot Usage (%) 53 | . 65 57 54 39 38 49 Treads 14 | . 25 22 18 7 7 . Flight 2 | . . . . . . 12 Device 9 | . 8 11 9 8 7 13 Processor 4 | . . 2 9 7 7 7 Launcher 18 | . 25 22 15 15 15 15 Naked Turns . | . . . . . . . Heaviest Build 6 | 3 3 3 6 3 3 4 Greatest Support 10 | 3 3 3 3 3 3 10 Greatest Overweight (x) 1 | . . . 1 . . 1 Average Overweight (x) . | . . . . . . . Largest Inventory Capacity 8 | 8 5 5 5 5 5 5 Average Capacity 5 | 6 5 5 5 5 5 5 Most Carried 5 | 5 5 5 5 5 5 5 Average Carried 4 | 5 4 4 5 5 5 4 Final Capacity 5 | 5 5 5 5 5 5 5 Final Carried 5 | 5 5 5 5 5 5 5 Class Distribution -------------------- 100% | Mutant Dominant Class ---------------- Mutant | -10/Materials Mutant | -9/Materials Mutant | -8/Materials Mutant | -7/Factory Mutant | -7/Waste Mutant | -7/Factory Resources | -11 -10 -9 -8 -7 -7 -7 ----------- Run | Scr Mat Mat Mat Fac Was Fac Matter Collected 298 | 156 . 27 49 . . 66 Remotely . | . . . . . . . Salvage Created 218 | . . 169 49 . . . Parts 28 | . . 26 2 . . . Haulers Intercepted 2 | . . 1 1 . . . Recyclers Shooed . | . . . . . . . Parts Field Recycled . | . . . . . . . Retrieved Matter . | . . . . . . . Parts Self-Destructed . | . . . . . . . Prevented . | . . . . . . . Kills | -11 -10 -9 -8 -7 -7 -7 ------- Run | Scr Mat Mat Mat Fac Was Fac Combat Hostiles Destroyed 3 | . . 3 . . . . AOE 3 | . . 3 . . . . Classes Destroyed 7 | . . 7 . . . . Worker 2 | . . 2 . . . . Builder 1 | . . 1 . . . . Tunneler 2 | . . 2 . . . . Hauler 2 | . . 1 1 . . . Mechanic 1 | . . 1 . . . . Watcher 2 | . . 2 . . . . Sentry 3 | . . 3 . . . . Best Kill Streak 12 | . . 12 1 . . . Combat Bots Only 3 | . . 3 . . . . Max Kills in Single Turn 3 | . . 3 1 . . . Gunslinging . | . . . . . . . Exploded 1 | . . 1 . . . . Melee . | . . . . . . . Uniques/NPCs Destroyed . | . . . . . . . Combat | -11 -10 -9 -8 -7 -7 -7 -------- Run | Scr Mat Mat Mat Fac Was Fac Damage Taken 473 | . . 289 75 17 . 92 Core 188 | . . 130 29 . . 29 Absorbed by Shields . | . . . . . . . Core Remaining (%) 90 | 100 100 67 94 . . . Volleys Fired 11 | . 1 8 2 . . . Largest 2 | . 2 2 1 . . . Hottest 60 | . 60 60 30 . . . Shots Fired 20 | . 2 16 2 . . . Gun . | . . . . . . . Cannon . | . . . . . . . Launcher 20 | . 2 16 2 . . . Special . | . . . . . . . Kinetic . | . . . . . . . Thermal . | . . . . . . . Explosive 20 | . 2 16 2 . . . Electromagnetic . | . . . . . . . Robot Hit Streak 2 | . . 2 . . . . Robot Miss Streak . | . . . . . . . Penetration Max . | . . . . . . . Secondary Targets . | . . . . . . . Shots Hit Robots 3 | . . 2 1 . . . Core Hits 19 | . . 16 1 . . 2 Critical Kills . | . . . . . . . Critical Parts Destroyed . | . . . . . . . Critical Strikes . | . . . . . . . Melee Attacks 1 | . . . 1 . . . Impact 1 | . . . 1 . . . Slashing . | . . . . . . . Piercing . | . . . . . . . Sneak Attacks 1 | . . . 1 . . . Combat Hostiles . | . . . . . . . Follow-up Attacks . | . . . . . . . Damage Inflicted 934 | . . 781 140 . . 13 Guns . | . . . . . . . Cannons . | . . . . . . . Explosions 829 | . . 781 48 . . . Melee 92 | . . . 92 . . . Ramming 13 | . . . . . . 13 Kinetic . | . . . . . . . Thermal . | . . . . . . . Explosive 829 | . . 781 48 . . . Electromagnetic . | . . . . . . . Impact 92 | . . . 92 . . . Slashing . | . . . . . . . Piercing . | . . . . . . . Highest Corruption . | . . . . . . . Average Corruption . | . . . . . . . Corruption Purged . | . . . . . . . Corruption Blocked . | . . . . . . . Overload Shots . | . . . . . . . Overflow Damage 160 | . . 88 72 . . . Projectiles . | . . . . . . . Explosions 88 | . . 88 . . . . Melee 72 | . . . 72 . . . Knockbacks . | . . . . . . . Impact . | . . . . . . . Kinetic . | . . . . . . . Secondary . | . . . . . . . Self-Inflicted Damage 40 | . . 35 . . . 5 Shots 1 | . . 1 . . . . Rammed 6 | . . . . . . 6 Targets Rammed 6 | . . . . . . 6 Kicked . | . . . . . . . Crushed . | . . . . . . . Highest Temperature 12 | . . 12 . . . . Average Temperature 5 | . . 5 . . . . Received Heat Transfer 156 | . . 84 45 9 . 18 Siege Activations . | . . . . . . . Robots Corrupted . | . . . . . . . Combat Hostiles . | . . . . . . . Parts Fried . | . . . . . . . Impact Corruptions 1 | . . . 1 . . . Robots Melted . | . . . . . . . Combat Hostiles . | . . . . . . . Parts Melted . | . . . . . . . Heat Transferred . | . . . . . . . Parts Sabotaged . | . . . . . . . Parts Stolen . | . . . . . . . Parts Stripped . | . . . . . . . Power Chain Reactions . | . . . . . . . Missiles Intercepted . | . . . . . . . Alert | -11 -10 -9 -8 -7 -7 -7 ------- Run | Scr Mat Mat Mat Fac Was Fac Peak Influence 500 | . 120 500 319 194 112 128 Initial 211 | . . 50 211 144 67 78 Average 148 | . 32 257 260 156 100 94 Maximum Alert Level 2 | . . 2 1 . . . Low Security (%) 72 | 100 100 45 . 100 100 100 Level 1 20 | . . 24 100 . . . Level 2 6 | . . 30 . . . . Level 3 . | . . . . . . . Level 4 . | . . . . . . . Level 5 . | . . . . . . . High Security . | . . . . . . . Max Security . | . . . . . . . Squads Dispatched 6 | . 1 1 2 1 . 1 Investigation 3 | . 1 . 1 1 . . Extermination . | . . . . . . . Reinforcement 3 | . . 1 1 . . 1 Assault . | . . . . . . . Garrison . | . . . . . . . Intercept . | . . . . . . . Searches Triggered . | . . . . . . . Construction Impeded 1 | . . 1 . . . . Haulers Reinforced . | . . . . . . . Active Scanning Responses . | . . . . . . . Cargo Convoy Interrupts . | . . . . . . . Stealth | -11 -10 -9 -8 -7 -7 -7 --------- Run | Scr Mat Mat Mat Fac Was Fac Distress Signals 4 | . 1 1 1 1 . . Communications Jammed . | . . . . . . . Distress Signals . | . . . . . . . Times Spotted 39 | . 3 17 5 4 6 4 Peak Tracking Total 12 | . 3 12 6 4 6 3 Tactical Retreats 2 | . . 1 . 1 . . Traps | -11 -10 -9 -8 -7 -7 -7 ------- Run | Scr Mat Mat Mat Fac Was Fac Traps Triggered 1 | . . . . 1 . . Indirectly . | . . . . . . . Trap Hack Attempts . | . . . . . . . Triggered . | . . . . . . . Disarmed . | . . . . . . . Reprogrammed . | . . . . . . . Reused . | . . . . . . . Traps Extracted . | . . . . . . . Installed . | . . . . . . . Triggered . | . . . . . . . Machines | -11 -10 -9 -8 -7 -7 -7 ---------- Run | Scr Mat Mat Mat Fac Was Fac Machines Disabled 2 | . 1 . 1 . . . Max in Single Turn 1 | . 1 . 1 . . . Machines Sabotaged . | . . . . . . . Garrisons Compromised . | . . . . . . . Overloaded Fab Kills . | . . . . . . . Hacking | -11 -10 -9 -8 -7 -7 -7 --------- Run | Scr Mat Mat Mat Fac Was Fac Machines Accessed 6 | . 3 1 1 1 . . Terminals 6 | . 3 1 1 1 . . Fabricators . | . . . . . . . Repair Stations . | . . . . . . . Recycling Units . | . . . . . . . Scanalyzers . | . . . . . . . Garrison Access . | . . . . . . . Total Hacks 15 | . 9 1 2 3 . . Successful 3 | . 1 1 1 . . . Failed 12 | . 8 . 1 3 . . Catastrophic 3 | . 2 . 1 . . . Database Lockouts . | . . . . . . . Manual 10 | . 7 1 2 . . . Terminals 15 | . 9 1 2 3 . . Fabricators . | . . . . . . . Repair Stations . | . . . . . . . Recycling Units . | . . . . . . . Scanalyzers . | . . . . . . . Garrison Access . | . . . . . . . Terminal Hacks 3 | . 1 1 1 . . . Level Access Points 3 | . 1 1 1 . . . Fabricator Hacks . | . . . . . . . Repair Station Hacks . | . . . . . . . Recycling Unit Hacks . | . . . . . . . Scanalyzer . | . . . . . . . Garrison Access Hacks . | . . . . . . . Unauthorized Hacks . | . . . . . . . Terminals . | . . . . . . . Fabricators . | . . . . . . . Repair Stations . | . . . . . . . Recycling Units . | . . . . . . . Scanalyzers . | . . . . . . . Garrison Access . | . . . . . . . Data Cores Recovered . | . . . . . . . Used . | . . . . . . . Hacking Detections 5 | . 3 . 1 1 . . Full Trace Events 5 | . 3 . 1 1 . . Feedback Events . | . . . . . . . Feedback Blocked . | . . . . . . . Robot Schematics Acquired . | . . . . . . . Robots Built . | . . . . . . . Authchips . | . . . . . . . Time . | . . . . . . . Total Robot Build Rating . | . . . . . . . Part Schematics Acquired . | . . . . . . . Parts Built . | . . . . . . . Authchips . | . . . . . . . Time . | . . . . . . . Total Part Build Rating . | . . . . . . . Parts Repaired . | . . . . . . . Time . | . . . . . . . Parts Recycled . | . . . . . . . Recycled Matter . | . . . . . . . Retrieved Matter . | . . . . . . . Retrieved Components . | . . . . . . . Parts Scanalyzed . | . . . . . . . Part Schematics Acquired . | . . . . . . . Parts Damaged . | . . . . . . . Bothacking | -11 -10 -9 -8 -7 -7 -7 ------------ Run | Scr Mat Mat Mat Fac Was Fac Used RIF Installer . | . . . . . . . Robots Hacked . | . . . . . . . Non-combat . | . . . . . . . Combat . | . . . . . . . Robot Hacks Applied . | . . . . . . . Relay Couplers Released . | . . . . . . . Fabnet Peak Effective % . | . . . . . . . Robots Rewired . | . . . . . . . Allies Hacked . | . . . . . . . Hacks Repelled . | . . . . . . . Allies | -11 -10 -9 -8 -7 -7 -7 -------- Run | Scr Mat Mat Mat Fac Was Fac Total Allies . | . . . . . . . Largest Group . | . . . . . . . Highest-Rated Group . | . . . . . . . Highest-Rated Ally . | . . . . . . . Total Orders . | . . . . . . . Ally Attacks . | . . . . . . . Total Damage . | . . . . . . . Kills . | . . . . . . . Allies Corrupted . | . . . . . . . Allies Melted . | . . . . . . . Intel | -11 -10 -9 -8 -7 -7 -7 ------- Run | Scr Mat Mat Mat Fac Was Fac Robot Analysis Total . | . . . . . . . Derelict Logs Recovered . | . . . . . . . Drone Launches . | . . . . . . . Drone Recoveries . | . . . . . . . Exploration | -11 -10 -9 -8 -7 -7 -7 ------------- Run | Scr Mat Mat Mat Fac Was Fac Turns Passed 454 | 3 99 102 69 46 42 93 Spaces Moved 758 | 1 156 150 104 88 84 175 Core 611 | 1 156 150 104 88 84 28 Treads . | . . . . . . . Legs . | . . . . . . . Wheels . | . . . . . . . Hover . | . . . . . . . Flight 147 | . . . . . . 147 Fastest Speed 32 | 50 50 50 50 50 50 32 Average Speed 48 | 50 50 50 55 50 50 38 Slowest Speed 100 | 50 50 50 100 50 50 100 Overloaded Moves . | . . . . . . . Propulsion Burnouts . | . . . . . . . Robots Hopped . | . . . . . . . Cave-ins Triggered . | . . . . . . . Exploration Rate (%) 27 | 2 40 34 17 5 88 9 Regions Visited 6 Branch Regions . Pre-discovered Areas . | . . . . . . . Known Exits Taken 3 | . 1 1 1 . . . Unknown Exits Taken 1 | 1 . . . . . . Scrap Searched . | . . . . . . . Spaces Dug 10 | . . . 10 . . . Terrain Destroyed 115 | . 21 77 17 . . . Melee . | . . . . . . . Projectile . | . . . . . . . AOE 115 | . 21 77 17 . . . Terrain Rammed . | . . . . . . . Walls Destroyed . | . . . . . . . Machines Disabled . | . . . . . . . Actions | -11 -10 -9 -8 -7 -7 -7 --------- Run | Scr Mat Mat Mat Fac Was Fac Total 825 | 4 174 160 110 90 83 204 Wait 3 | . . . . . . 3 Move 753 | . 155 149 103 88 83 175 Hop . | . . . . . . . Pick Up 14 | . 5 1 1 . . 7 Fast Attach 8 | . 3 1 . 1 . 3 Attach 1 | . . . . . . 1 Detach 1 | 1 . . . . . . Swap 6 | . 3 . 2 . . 1 Drop 21 | 3 7 1 1 1 . 8 Fire 11 | . 1 8 2 . . . Melee 1 | . . . 1 . . . Ram 6 | . . . . . . 6 Kick . | . . . . . . . Crush . | . . . . . . . Escape Stasis . | . . . . . . . Rewire . | . . . . . . . Trap . | . . . . . . . Miscellaneous . | . . . . . . . Route ------- -11/Scrapyard -10/Materials (discovered 4 exits: *Mat x3 / [*Min]) -9/Materials (discovered 4 exits: *Mat x3 / [*Min]) -8/Materials (discovered 3 exits: *Fac x3) -7/Factory -7/Waste -7/Factory History --------- Turn | Location | Event 4 | -11/Scrapyard | Discovered new exit (range 0) 4 | -11/Scrapyard | Entered Materials 72 | -10/Materials | Discovered new exit (range 12) 78 | -10/Materials | Identified exit to Materials 103 | -10/Materials | Entered another Materials area 103 | -9/Materials | Evolved 2 slots: Utility x2 127 | -9/Materials | Discovered new exit (range 11) 139 | -9/Materials | Identified exit to Materials 205 | -9/Materials | Entered another Materials area 205 | -8/Materials | Evolved 2 slots: Utility x2 212 | -8/Materials | Identified exit to Factory 274 | -8/Materials | Entered Factory 274 | -7/Factory | Evolved 2 slots: Utility x2 320 | -7/Factory | Sucked down chute 320 | -7/Factory | Entered Waste 321 | -7/Waste | Build established: Mutant 325 | -7/Waste | Spotted C-40 Crusher 329 | -7/Waste | Spotted C-40 Crusher 334 | -7/Waste | Spotted C-40 Crusher 347 | -7/Waste | Spotted C-40 Crusher 347 | -7/Waste | Spotted C-40 Crusher 352 | -7/Waste | Spotted C-40 Crusher 355 | -7/Waste | Discovered new exit (range 16) 362 | -7/Waste | Identified exit to Factory 362 | -7/Waste | Entered Factory 455 | -7/Factory | Self-destructed Last Messages --------------- 00404_ Slammed into A-02 Transporter. 00404_ Cesium-ion Thruster broken. 00404_ Destabilizing: Short circuit. 00406_ Slammed into A-02 Transporter. 00410_ K-01 Serf collects debris. 00411_ Slammed into A-02 Transporter. 00411_ Destabilizing: System interference. 00411_ Imp. Signal Interpreter temporarily disabled. 00416_ K-01 Serf collects debris. 00420_ O-24 Administrator: "IFF HANDSHAKE FAILED. SECURING TERMINAL." 00423_ Dropped Broken Cesium-ion Thruster. 00423_ ALERT: Hostiles spotted, dispatching reinforcements to Terminal F014. 00428_ Acquired Imp. Utility Shielding. 00435_ R-06 Scavenger collects Broken Cesium-ion Thruster. 00439_ Dropped Mni. Grenade Launcher. 00440_ Acquired Machine Analyzer. 00442_ Penetrated by Slug. 00442_ Cesium-ion Thruster destroyed. 00454_ Acquired 66 matter. Map ----- +----------------------------------------------------+ | ?????????????????????????????# """ #??? | | ???????????????????????#?????# """ #??? | | ???????????????????????# ????# """ ####??? | | ????????????????????#### ##### #?????? | | ????????????????????# #?????? | | ????????????????????# # #?????? | | ?????????????????????????# ##????? | | ?????????????????????????# #??? | | ?????????????????????????# """" #??? | | ?????????????????????????# """" #??? | | ?????????????????????????# """" #??? | | ?????????????????????????# """" #??? | | ?????????????????????????# """" ?? ???? | | ?????????????????????????# """" ????????? | | ?????????????????????????# """" ! #??? | | ?????????????????????????# #??? | | ?????????????????????????# #?????? | | ????????????????????????###+#############?????? | | ????????????????????????#! #????????????????? | | ??????????????????##????# #????????????????? | | ?????????????###### ??#/ ! #????????????????? | | ?????????? # #????????????????? | | ?????????? + ! |#????????????????? | | ?????????? ! # #????????????????? | | ?????????????###### ??# ] !#????????????????? | | ??????????????????##????#@ #????????????????? | | ????????????????????????#] * #????????????????? | | ????????????????????????######????????????????? | | ??????????????????????????????????????????????? | | ??????????????????????????????????????????????? | | ??????????????????????????????????????????????? | | ??????????????????????????????????????????????? | | ??????????????????????????????????????????????? | | ??????????????????????????????????????????????? | | ??????????????????????????????????????????????? | | ??????????????????????????????????????????????? | | ??????????????????????????????????????????????? | | ??????????????????????????????????????????????? | | ??????????????????????????????????????????????? | | ??????????????????????????????????????????????? | | ??????????????????????????????????????????????? | | ??????????????????????????????????????????????? | | ??????????????????????????????????????????????? | | ??????????????????????????????????????????????? | | ??????????????????????????????????????????????? | | ??????????????????????????????????????????????? | | ??????????????????????????????????????????????? | | ??????????????????????????????????????????????? | | ??????????????????????????????????????????????? | | ??????????????????????????????????????????????? | +----------------------------------------------------+ Best States ------------- Heat Dissipation 34 Energy Generation 5 Energy Capacity 100 Matter Stores 246 Matter Capacity 300 Sight Range 16 Terrain Scan Density 10 Evasion (%) 63 Item Schematics ----------------- None Robot Schematics ------------------ None Fabricated ------------ Nothing Alien Tech Used ----------------- None Achievements -------------- None Challenges ------------ None Game ------ Seed EnhancedAbsorptionSheargun Manual? 0 Play Time 00:12:22 Cumulative 132.4 hours Start 2022.04.30 @ 21:36:38 End 2022.04.30 @ 21:48:46 Sessions 1 Manual Loads 0 Difficulty Rogue Special Mode None Game No. 175 Rogue 174 Adventurer 0 Explorer 1 Win Type - Total 5 Types 5/0/0/0/0/0/0/0/0 Lore% 59 Gallery% 59 Achievement% 50 Wizard Run 0 Options --------- ASCII 1 Keyboard 0 Movement Vi Keybinds 0 Fullscreen 1 Font 18/SmallcapsGlow Map View 76x50 Tactical HUD 1 Map Filters NONE Filters NONE Steam 1 RUN: 47efa60b-3c49-4c6b-9d65-f272b67a868c